bitfinex/quotes_ETHUSD_20260308
["timestamp","ask_amount","ask_price","bid_price","bid_amount"]
[1772960261584,1.27777056,1959.2,1959.1,0.002]
[1772960264486,1.74426895,1959.4,1959.1,0.002]
[1772960264817,1.74426895,1959.4,1959.1,0.45693657]
[1772960266591,0.46636293,1959.3,1959.1,0.002]
[1772960266999,0.46636293,1959.2,1959.1,0.002]
[1772960268101,1.74232987,1959.3,1959.1,0.002]
[1772960269599,0.46636293,1959.3,1959.1,0.002]
[1772960269803,1.27795719,1959.4,1959.2,0.001]
[1772960269977,1.74432012,1959.4,1959.2,0.001]
[1772960270174,0.002,1959.4,1959.2,0.45593657]
[1772960270377,1.27790218,1959.4,1959.2,0.45593657]
[1772960270578,0.002,1959.4,1959.2,0.45593657]
[1772960271108,1.27791146,1959.4,1959.2,0.45593657]
[1772960271406,1.27791146,1959.4,1959.2,0.001]
[1772960271596,1.74427439,1959.4,1959.2,0.001]
[1772960272204,0.46836293,1959.4,1959.1,0.45593657]
[1772960272406,0.46836293,1959.4,1959.2,0.001]
[1772960273907,1.27790078,1959.4,1959.3,0.001]
[1772960276108,0.46836293,1959.4,1959.3,0.001]
[1772960276408,0.46836293,1959.4,1959.2,0.001]
[1772960278108,1.74232883,1959.3,1959.2,0.001]
[1772960281900,0.46636293,1959.2,1958.9,0.001]
[1772960282213,0.46636293,1959.0,1958.7,0.001]
[1772960285911,1.27622645,1958.9,1958.8,0.001]
[1772960286093,1.75449186,1958.9,1958.8,0.001]
[1772960290193,0.47826541,1958.8,1958.5,1.37214317]
[1772960291219,1.75462217,1958.7,1958.5,0.89907255]
[1772960294118,1.75462217,1958.7,1958.4,0.47407062]
[1772960298029,1.75462217,1958.7,1958.5,0.001]
[1772960304940,1.75651721,1958.9,1958.5,0.47407062]
[1772960305242,0.47826541,1958.8,1958.5,0.001]
[1772960306530,0.47826541,1958.8,1958.5,0.47407062]
[1772960307425,1.75457863,1958.8,1958.5,0.47407062]
[1772960311220,1.75457863,1958.8,1958.6,0.001]
[1772960311416,0.002,1958.7,1958.6,0.001]
[1772960312560,5.10691618,1958.9,1958.6,0.45595696]
[1772960312561,1.7589596,1958.9,1958.6,0.45595696]
[1772960315237,0.02,1958.7,1958.6,0.45595696]
[1772960315752,0.002,1959.3,1958.8,0.45495696]
[1772960315933,1.2799668,1959.3,1958.8,0.45495696]
[1772960316324,0.004,1959.3,1958.8,0.45495696]
[1772960316529,0.002,1959.5,1958.7,0.45495696]
[1772960316728,0.004,1959.5,1958.7,0.45495696]
[1772960317754,0.004,1959.5,1958.8,1.2762916]
[1772960317947,0.002,1959.5,1958.9,0.45495696]
[1772960318147,0.002,1959.6,1958.9,0.45495696]
[1772960319829,0.002,1959.6,1959.0,1.2761613]
[1772960320031,0.48273143,1959.5,1958.9,0.45495696]
[1772960320450,0.48273143,1959.4,1958.9,0.45495696]
[1772960320655,0.48073143,1959.4,1958.9,0.45495696]
[1772960320850,0.48273143,1959.3,1958.9,0.45495696]
[1772960321051,0.48073143,1959.3,1958.9,0.45495696]
[1772960321433,0.48273143,1959.2,1958.9,0.45495696]
[1772960321632,0.48073143,1959.2,1958.9,0.45495696]
[1772960322555,0.002,1959.1,1958.9,0.45495696]
[1772960322761,0.002,1959.1,1958.8,1.73124227]
[1772960323058,0.48273143,1959.0,1958.7,0.45495696]
[1772960323259,0.48073143,1959.0,1958.6,1.7323631]
[1772960323463,0.48073143,1959.0,1958.7,0.45495696]
[1772960323971,0.48073143,1959.0,1958.7,0.45595696]
[1772960325578,0.48273143,1958.9,1958.7,0.001]
[1772960327970,0.002,1958.9,1958.7,0.45595696]
[1772960328602,0.48273143,1959.2,1958.7,0.45595696]
[1772960329160,0.48273143,1959.2,1958.9,0.45495696]
[1772960334694,0.48273143,1959.2,1958.9,1.73117624]
[1772960336801,0.48273143,1959.2,1958.7,0.001]
[1772960337295,0.48273143,1959.2,1958.8,0.001]
[1772960337599,0.48073143,1959.0,1958.8,0.001]
[1772960338609,0.48273143,1959.1,1958.8,0.45595696]
[1772960339094,0.48273143,1959.1,1958.8,1.7321968]
[1772960342606,0.002,1959.1,1958.9,0.47089812]
[1772960349305,0.002,1959.1,1959.0,1.2771613]
[1772960352119,0.002,1959.1,1959.0,1.74291519]
[1772960352603,0.002,1959.3,1959.1,0.46575389]
[1772960352809,0.002,1959.5,1959.4,0.46575389]
[1772960353007,0.002,1959.6,1959.4,0.46575389]
[1772960353205,0.002,1959.5,1959.4,0.46575389]
[1772960353513,0.004,1959.6,1959.4,0.46575389]
[1772960357545,0.00153886,1960.0,1959.7,0.46575389]
[1772960358681,0.45575987,1960.0,1959.7,0.46575389]
[1772960358818,0.45575987,1960.0,1959.4,0.46575389]
[1772960359146,0.45422101,1960.5,1959.4,0.46575389]
[1772960359439,0.45422101,1960.3,1959.6,0.46575389]
[1772960362007,0.45422101,1960.3,1959.7,0.001]
[1772960362008,0.45422101,1960.1,1959.7,0.001]
[1772960362206,0.45622101,1960.0,1959.7,0.001]
[1772960362744,0.45622101,1960.0,1959.7,0.46675389]
[1772960363915,0.45622101,1960.0,1959.8,1.27564037]
[1772960364116,0.45622101,1960.0,1959.7,1.74241409]
[1772960368845,0.45622101,1960.0,1959.7,0.46675389]
[1772960369042,0.45422101,1959.9,1959.7,0.001]
[1772960370642,1.7298384,1959.9,1959.7,0.001]
[1772960370846,0.45422101,1959.8,1959.5,0.001]
[1772960372349,0.45422101,1959.8,1959.5,1.27680477]
[1772960372534,0.45422101,1959.8,1959.5,0.46675389]
[1772960372734,0.45422101,1959.8,1959.5,0.001]
[1772960374348,0.49956665,1959.7,1959.5,0.001]
[1772960374719,0.49956665,1959.9,1959.5,0.4639713]
[1772960374922,0.49956665,1959.9,1959.5,1.73978712]
[1772960375252,0.49956665,1959.9,1959.6,0.001]
[1772960375947,1.27756278,1960.0,1959.6,0.001]
[1772960376238,0.49956665,1959.9,1959.6,0.001]
[1772960377453,1.27560263,1959.9,1959.6,0.001]
[1772960377660,0.49956665,1959.8,1959.6,0.001]
[1772960379251,0.49956665,1959.7,1959.5,0.001]
[1772960383758,1.27562782,1959.9,1959.5,0.4639713]
[1772960383965,1.77519447,1959.9,1959.5,0.4639713]
[1772960384265,0.49956665,1959.8,1959.5,0.4639713]
[1772960387173,0.49956665,1959.8,1959.6,0.001]
[1772960387466,0.002,1959.7,1959.6,0.001]
[1772960387968,0.50156665,1959.7,1959.6,0.001]
[1772960400765,0.002,1959.7,1959.6,0.001]
[1772960400967,0.002,1959.7,1959.6,0.4639713]
[1772960401157,0.002,1959.8,1959.6,0.4639713]
[1772960401364,0.002,1960.0,1959.7,0.4629713]
[1772960401548,0.49956665,1959.9,1959.6,0.001]
[1772960401950,3.95928654,1959.8,1959.0,0.00253886]
[1772960402150,0.49956665,1959.2,1959.0,0.00253886]
[1772960404562,1.77566078,1959.2,1959.0,0.00253886]
[1772960404758,2.80009413,1959.2,1959.0,0.00253886]
[1772960404964,0.45015079,1959.1,1959.0,0.00253886]
[1772960405480,0.45015079,1959.5,1959.0,0.46431147]
[1772960405655,1.97415079,1959.5,1959.0,0.46431147]
[1772960407383,1.97415079,1959.5,1959.1,1.73786877]
[1772960407565,0.45015079,1959.4,1959.0,1.27865035]
[1772960408182,0.45015079,1959.4,1959.0,1.74042296]
[1772960409188,0.45015079,1959.4,1959.0,1.27865035]
[1772960409582,0.45015079,1959.4,1959.0,1.74042296]
[1772960409889,0.45015079,1959.3,1959.0,0.00253886]
[1772960410300,0.45015079,1959.3,1958.9,0.001]
[1772960410466,0.45015079,1959.3,1958.9,0.46277261]
[1772960410661,0.45015079,1959.3,1958.9,0.001]
[1772960411460,0.45015079,1959.1,1958.9,0.001]
[1772960412707,0.45015079,1959.1,1959.0,0.001]
[1772960412984,0.45015079,1959.0,1958.3,1.73938668]
[1772960413184,0.45015079,1959.0,1958.3,0.001]
[1772960414768,0.45015079,1958.8,1958.3,0.46277261]
[1772960415166,0.45015079,1958.8,1958.3,0.001]
[1772960415377,0.45015079,1958.8,1958.2,0.001]
[1772960415583,0.45015079,1958.7,1958.2,0.001]
[1772960415777,0.45015079,1958.5,1958.2,0.001]
[1772960416875,1.72665821,1958.5,1958.2,0.001]
[1772960417775,0.45015079,1958.4,1958.2,0.001]
[1772960419477,1.72676826,1958.3,1958.2,0.001]
[1772960419989,0.45015079,1958.3,1958.2,0.001]
[1772960423204,5.55626183,1958.5,1958.2,0.001]
[1772960423405,2.8024871,1958.6,1958.3,0.46177261]
[1772960423406,1.527,1958.6,1958.3,0.46177261]
[1772960423803,0.45015079,1958.7,1958.3,0.46177261]
[1772960423996,1.527,1958.6,1958.3,0.46177261]
[1772960424317,1.525,1958.8,1958.3,0.46177261]
[1772960425274,1.525,1958.8,1958.5,0.46177261]
[1772960426610,0.002,1958.6,1958.5,0.46177261]
[1772960426909,1.525,1958.8,1958.5,0.46177261]
[1772960427527,1.525,1958.8,1958.5,1.73822664]
[1772960428374,0.45015079,1958.9,1958.5,1.73822664]
[1772960430522,0.45015079,1958.9,1958.6,0.46177261]
[1772960431214,0.45015079,1959.0,1958.6,0.46177261]
[1772960431713,3.25421062,1959.2,1958.6,0.46177261]
[1772960432013,1.7281859,1959.2,1958.6,0.46177261]
[1772960432380,0.45015079,1959.1,1958.6,0.46177261]
[1772960432708,0.45015079,1959.1,1958.7,1.27635676]
[1772960432915,0.45015079,1959.1,1958.7,1.73483562]
[1772960436505,0.45015079,1959.1,1958.8,0.45847886]
[1772960436703,0.48273528,1959.2,1958.8,0.45847886]
[1772960437099,2.00973528,1959.2,1958.8,0.45847886]
[1772960437300,3.28577691,1959.2,1958.8,1.73476296]
[1772960437600,0.48273528,1959.2,1958.9,0.45847886]
[1772960438218,0.002,1959.0,1958.9,0.45847886]
[1772960439115,0.002,1959.0,1958.8,0.45847886]
[1772960449399,0.002,1959.0,1958.9,0.45847886]
[1772960452425,0.002,1959.0,1958.9,1.73470531]
[1772960452639,1.75649887,1959.7,1959.1,0.45847886]
[1772960452840,1.75647586,1959.7,1959.1,0.45847886]
[1772960453052,0.48073528,1959.6,1959.1,0.45847886]
[1772960453649,1.75651047,1959.6,1959.1,0.45847886]
[1772960454230,0.48273528,1959.5,1959.1,0.45847886]
[1772960454825,0.48273528,1959.5,1959.2,0.45847886]
[1772960456518,1.524,1959.8,1959.2,0.45847886]
[1772960456747,0.48073528,1959.7,1959.2,0.45847886]
[1772960456946,0.48073528,1959.7,1959.3,1.2759659]
[1772960457151,0.48073528,1959.7,1959.3,1.73444476]
[1772960457451,1.75644651,1959.7,1959.3,1.73444476]
[1772960460336,1.75644651,1959.7,1959.3,0.45847886]
[1772960460535,0.48073528,1959.6,1958.7,0.45947886]
[1772960460734,0.48073528,1959.4,1958.7,0.45947886]
[1772960460948,0.48073528,1959.4,1958.7,1.73583445]
[1772960461148,0.48073528,1959.4,1958.7,0.45947886]
[1772960461455,0.48073528,1959.4,1958.7,0.001]
[1772960462449,0.48073528,1959.2,1958.7,0.001]
[1772960463054,1.525,1959.2,1958.7,0.001]
[1772960463267,0.47465932,1959.1,1958.7,0.001]
[1772960465741,0.45053802,1959.0,1958.7,0.001]
[1772960466248,0.45053802,1959.0,1958.7,0.47346516]
[1772960466556,1.01313214,1959.5,1958.7,0.47346516]
[1772960466557,0.45253802,1959.6,1958.8,0.47246516]
[1772960466734,1.72831108,1959.6,1958.8,0.47246516]
[1772960466934,0.45053802,1959.5,1958.8,0.47246516]
[1772960467963,0.45053802,1959.5,1959.0,0.47246516]
[1772960468661,1.7263765,1959.5,1959.0,0.47246516]
[1772960469435,1.27583848,1959.5,1959.0,0.47246516]
[1772960469635,0.45053802,1959.4,1959.0,0.47246516]
[1772960469837,1.72645102,1959.4,1959.0,0.47246516]
[1772960470145,1.72645102,1959.4,1959.0,1.74861947]
[1772960470339,1.275913,1959.4,1959.0,0.47246516]
[1772960470555,0.45053802,1959.3,1958.8,1.7487104]
[1772960470763,0.45053802,1959.3,1958.9,0.47246516]
[1772960471297,0.45053802,1959.3,1958.8,1.27624524]
[1772960471561,0.45053802,1959.3,1958.8,1.7487104]
[1772960471749,0.45053802,1959.3,1958.8,0.47246516]
[1772960471945,0.45053802,1959.2,1958.8,1.74871804]
[1772960472145,0.45053802,1959.2,1958.7,1.27730494]
[1772960472558,0.45053802,1959.2,1958.7,1.7497701]
[1772960472861,0.45053802,1959.2,1958.8,0.47246516]
[1772960473867,0.45053802,1959.2,1958.7,1.7497701]
[1772960474449,1.72659095,1959.2,1958.8,0.001]
[1772960474775,0.45053802,1959.1,1958.8,0.001]
[1772960477068,0.45053802,1959.0,1958.8,0.001]
[1772960478787,0.45053802,1959.3,1958.8,0.001]
[1772960478962,0.45053802,1959.2,1958.8,0.001]
[1772960479472,0.45053802,1959.2,1958.8,0.47346516]
[1772960480547,0.45053802,1959.2,1958.8,0.001]
[1772960481064,0.45053802,1959.0,1958.8,0.001]
[1772960482069,1.72847069,1959.4,1958.8,0.47346516]
[1772960482273,0.45053802,1959.3,1958.8,0.47346516]
[1772960483846,1.27603103,1959.2,1958.8,0.47346516]
[1772960484047,1.72656905,1959.2,1958.8,0.47346516]
[1772960485171,0.45053802,1959.1,1958.8,0.47346516]
[1772960486981,0.45053802,1959.1,1958.9,0.001]
[1772960489094,1.72667213,1959.1,1958.9,0.001]
[1772960489295,0.45053802,1959.0,1958.9,0.001]
[1772960489452,0.45053802,1959.0,1958.6,0.001]
[1772960491302,0.45053802,1958.9,1958.6,0.47346516]
[1772960492193,0.45053802,1958.9,1958.6,0.001]
[1772960494098,0.47056955,1958.8,1958.6,0.001]
[1772960494285,0.47056955,1958.6,1958.4,0.001]
[1772960494496,0.47056955,1958.6,1958.2,0.001]
[1772960495171,0.47056955,1958.6,1958.0,0.00253886]
[1772960495409,0.47056955,1958.5,1958.0,0.00253886]
[1772960496105,0.47056955,1958.3,1958.0,0.00253886]
[1772960496806,0.47056955,1958.3,1958.0,0.46637482]
[1772960497006,0.47056955,1958.3,1958.0,0.00253886]
[1772960497173,0.47056955,1958.3,1958.0,0.46637482]
[1772960498604,5.10620915,1958.6,1958.0,0.46637482]
[1772960498809,0.47056955,1958.5,1958.0,0.46637482]
[1772960499401,0.47056955,1958.3,1958.1,0.001]
[1772960501579,1.27668266,1958.2,1958.1,0.001]
[1772960501887,1.74725221,1958.2,1958.1,0.001]
[1772960502610,1.27668266,1958.2,1957.9,0.001]
[1772960502812,0.47056955,1958.1,1957.2,0.46383596]
[1772960503606,1.27681307,1958.0,1957.3,1.2772697]
[1772960503813,0.47056955,1957.8,1957.4,0.46383596]
[1772960506109,1.525,1958.1,1957.6,0.46383596]
[1772960506293,0.47056955,1958.0,1957.6,0.46383596]
[1772960507283,1.94956955,1958.0,1957.6,0.46383596]
[1772960508916,0.47056955,1957.9,1957.6,0.46383596]
[1772960510712,0.47056955,1957.9,1957.1,1.74123619]
[1772960510903,0.47056955,1957.7,1957.1,1.74123619]
[1772960511114,0.47056955,1957.7,1957.2,0.46383596]
[1772960511918,0.47056955,1957.7,1957.5,0.001]
[1772960513219,0.47056955,1957.6,1957.5,0.001]
[1772960513895,1.74759442,1957.7,1957.5,0.001]
[1772960514099,0.47056955,1957.7,1957.5,0.001]
[1772960514718,1.74758269,1957.7,1957.5,0.001]
[1772960516343,0.47056955,1957.7,1957.5,0.001]
[1772960516692,1.7475913,1957.7,1957.5,0.001]
[1772960517595,3.22155625,1957.8,1957.5,0.46483596]
[1772960518613,3.22155625,1957.8,1957.5,0.001]
[1772960518817,0.47056955,1957.7,1957.5,0.001]
[1772960519602,1.74764125,1957.7,1957.5,0.001]
[1772960520696,0.47056955,1957.7,1957.5,0.001]
[1772960522021,1.96256955,1957.7,1957.5,0.001]
[1772960522317,3.23958589,1957.7,1957.5,0.001]
[1772960522520,3.23958589,1957.7,1957.4,0.46483596]
[1772960522521,0.4591355,1957.5,1957.0,0.46207293]
[1772960522825,0.4591355,1957.4,1957.0,1.7395357]
[1772960523318,0.4591355,1957.4,1957.0,0.46207293]
[1772960523526,0.4591355,1957.4,1957.0,1.73953619]
[1772960523893,0.4900511,1957.3,1957.0,0.46207293]
[1772960525102,0.4900511,1957.5,1957.1,0.4520689]
[1772960525306,1.502,1957.4,1957.1,0.4520689]
[1772960525917,1.502,1957.4,1957.0,0.00153886]
[1772960525918,1.76730417,1957.4,1957.0,0.00153886]
[1772960526122,0.4900511,1957.4,1957.0,0.45360776]
[1772960526636,0.4900511,1957.3,1957.0,0.00153886]
[1772960527933,1.76738606,1957.2,1957.0,0.00153886]
[1772960528134,0.4900511,1957.2,1957.0,0.00153886]
[1772960529542,1.27730921,1957.3,1957.0,0.45360776]
[1772960529543,1.509,1957.3,1957.0,0.45360776]
[1772960532246,1.9990511,1957.3,1957.0,0.45360776]
[1772960532435,1.514,1957.3,1957.1,0.4520689]
[1772960533016,2.0040511,1957.3,1957.0,0.00153886]
[1772960533545,3.28133603,1957.3,1957.0,0.00153886]
[1772960533847,2.0040511,1957.3,1957.0,0.00153886]
[1772960534417,1.27724803,1957.4,1957.0,0.00153886]
[1772960534418,1.516,1957.4,1957.0,0.45360776]
[1772960535239,0.4900511,1957.6,1957.0,0.45360776]
[1772960535443,2.0050511,1957.6,1957.0,0.45360776]
[1772960535648,2.0050511,1957.6,1957.2,0.4520689]
[1772960536943,0.001,1957.3,1957.2,0.4520689]
[1772960537544,0.001,1957.3,1957.2,1.72940386]
[1772960543949,0.001,1957.3,1957.1,1.27846288]
[1772960547147,0.001,1957.3,1957.1,1.73053178]
[1772960549056,0.001,1957.3,1957.2,0.0011]
[1772960551855,0.001,1957.3,1957.2,0.4531689]
[1772960552034,0.001,1957.3,1957.2,0.0011]
[1772960556366,0.49146447,1957.3,1957.2,0.0011]
[1772960557459,0.001,1957.3,1957.2,0.0011]
[1772960562371,0.49146447,1957.3,1957.0,0.00263886]
[1772960562672,0.49046447,1957.1,1956.5,1.75136048]
[1772960562868,0.49046447,1957.0,1956.5,1.75136048]
[1772960564450,0.49046447,1957.0,1956.5,0.47361907]
[1772960566763,0.49046447,1956.8,1956.5,0.47361907]
[1772960567160,0.49046447,1956.8,1956.5,1.75140304]
[1772960567954,0.49046447,1957.2,1956.6,0.47361907]
[1772960568170,0.49146447,1957.3,1956.6,0.47361907]
[1772960568354,1.76874176,1957.3,1956.6,0.47361907]
[1772960568550,1.76874176,1957.3,1956.7,1.27766136]
[1772960568747,1.76874176,1957.3,1956.8,0.47361907]
[1772960569359,0.49146447,1957.3,1956.8,0.47361907]
[1772960570565,0.49146447,1957.3,1956.9,1.27753078]
[1772960570768,0.49146447,1957.3,1957.0,0.47361907]
[1772960572750,0.001,1957.2,1957.0,0.47361907]
[1772960577480,0.001,1957.2,1957.0,1.75107976]
[1772960577777,0.001,1957.2,1957.1,0.47361907]
[1772960581490,0.001,1957.2,1956.9,1.27858899]
[1772960581658,0.001,1957.2,1957.0,0.47361907]
[1772960582995,0.001,1957.2,1957.0,1.7510698]
[1772960583794,0.001,1957.2,1957.1,0.48740722]
[1772960583995,0.001,1957.3,1957.1,0.48740722]
[1772960585399,0.001,1957.3,1957.1,1.76477715]
[1772960586687,0.001,1957.3,1957.2,0.48740722]
[1772960586898,0.001,1957.3,1957.2,0.48850722]
[1772960588004,0.001,1957.3,1957.2,1.76584218]
[1772960588173,0.001,1957.3,1957.2,0.48850722]
[1772960593401,0.001,1957.3,1957.2,1.76584218]
[1772960594703,0.001,1957.3,1957.2,0.48850722]
[1772960595172,0.001,1957.3,1957.2,1.76584218]
[1772960599211,0.001,1957.3,1957.2,0.0011]
[1772960599784,0.47216718,1957.3,1957.2,0.0011]
[1772960600525,0.001,1957.3,1957.2,0.0011]
[1772960601213,0.001,1957.3,1957.2,1.27843496]
[1772960604038,0.47116718,1957.7,1957.3,0.48740722]
[1772960604313,1.74817929,1957.7,1957.3,0.48740722]
[1772960604511,0.47116718,1957.6,1957.3,0.48740722]
[1772960604979,0.47116718,1957.6,1957.2,0.0011]
[1772960606711,1.2771392,1957.5,1957.2,0.0011]
[1772960606923,0.47116718,1957.4,1957.2,0.0011]
[1772960608229,0.47116718,1957.4,1957.0,0.0011]
[1772960608431,0.47116718,1957.4,1957.0,1.27856158]
[1772960610212,0.47116718,1957.3,1957.0,0.0011]
[1772960610918,0.47116718,1957.3,1957.0,0.48850722]
[1772960611528,0.47116718,1957.3,1957.1,0.001]
[1772960611825,0.002,1957.2,1957.1,0.001]
[1772960614019,0.47995681,1957.2,1957.1,0.001]
[1772960614320,0.002,1957.2,1957.1,0.001]
[1772960615221,0.47995681,1957.2,1957.1,0.001]
[1772960617319,0.002,1957.3,1957.1,0.48937027]
[1772960619129,0.002,1957.3,1957.1,1.76673784]
[1772960619431,0.002,1957.3,1957.2,0.48837027]
[1772960621412,0.002,1957.3,1957.1,1.27836757]
[1772960622027,0.002,1957.3,1957.1,1.76673784]
[1772960622332,0.002,1957.3,1957.1,0.48937027]
[1772960622533,0.002,1957.3,1957.1,1.76677025]
[1772960624334,0.002,1957.3,1957.2,0.0011]
[1772960626141,1.499,1957.5,1957.2,0.0011]
[1772960626507,2.7761393,1957.5,1957.2,0.0011]
[1772960629635,0.002,1957.5,1957.2,0.0011]
[1772960629837,1.506,1957.5,1957.2,0.0011]
[1772960631708,2.78316262,1957.5,1957.2,0.0011]
[1772960636629,2.78316262,1957.5,1957.3,0.0011]
[1772960637044,0.001,1957.4,1957.3,0.0011]
[1772960637340,0.001,1957.4,1957.3,0.5011]
[1772960637529,0.001,1957.4,1957.3,0.0011]
[1772960644350,0.45014263,1957.3,1957.0,0.0011]
[1772960644652,0.45014263,1957.1,1956.8,0.468554]
[1772960646355,0.45014263,1957.1,1956.8,1.74614535]
[1772960647255,0.45014263,1957.1,1956.8,0.468554]
[1772960647841,1.512,1957.2,1956.8,1.27869219]
[1772960648042,1.512,1957.2,1956.9,0.467454]
[1772960648231,1.96214263,1957.2,1956.9,0.467454]
[1772960648427,0.45114263,1957.4,1957.0,0.468454]
[1772960648753,0.002,1957.3,1957.0,0.468454]
[1772960649458,0.002,1957.3,1957.1,0.467454]
[1772960651857,0.002,1957.3,1957.2,0.467454]
[1772960652858,0.001,1957.4,1957.2,0.467454]
[1772960653848,0.001,1957.4,1957.3,0.467454]
[1772960654955,0.002,1957.5,1957.3,0.467454]
[1772960655164,0.002,1957.6,1957.3,0.467454]
[1772960655858,0.002,1957.8,1957.5,0.467454]
[1772960657945,0.002,1957.8,1957.5,1.74453298]
[1772960658655,0.002,1957.9,1957.6,0.467454]
[1772960660042,0.00153886,1958.0,1957.8,0.467454]
[1772960662235,0.002,1957.9,1957.8,0.467454]
[1772960664140,0.00153886,1958.0,1957.9,0.467454]
[1772960664466,1.27655281,1958.4,1958.0,0.467454]
[1772960664966,1.72669544,1958.4,1958.0,0.467454]
[1772960666166,1.72669544,1958.4,1958.0,1.7442638]
[1772960666874,1.72669544,1958.4,1958.0,0.467454]
[1772960672361,0.45014263,1958.3,1958.0,0.467454]
[1772960674147,1.72876192,1958.3,1958.0,0.467454]
[1772960676344,1.72876192,1958.3,1957.7,5.1088261]
[1772960676345,0.48998981,1958.2,1957.7,0.492735]
[1772960679354,0.48998981,1958.0,1957.7,0.492735]
[1772960679554,1.27674786,1958.1,1957.5,0.001]
[1772960679555,0.48998981,1957.8,1957.5,0.001]
[1772960679756,0.48998981,1957.8,1957.5,1.27813222]
[1772960680056,1.51,1957.9,1957.6,0.491735]
[1772960684570,1.51,1957.9,1957.7,0.491735]
[1772960685772,1.51,1957.9,1957.7,1.76868899]
[1772960685967,1.51,1957.9,1957.7,0.491735]
[1772960686386,1.51,1957.9,1957.8,0.001]
[1772960687173,1.7667597,1958.1,1957.8,0.001]
[1772960687368,1.7667597,1958.1,1957.8,0.492735]
[1772960688190,0.48998981,1958.1,1957.8,0.492735]
[1772960688497,1.5,1958.1,1957.8,0.492735]
[1772960690011,3.26678474,1958.1,1957.8,0.492735]
[1772960690401,0.48998981,1958.0,1957.8,0.001]
[1772960691480,2.77679493,1958.1,1957.8,0.492735]
[1772960691681,3.26678474,1958.1,1957.8,0.492735]
[1772960692294,1.98998981,1958.1,1957.8,0.492735]
[1772960692811,0.002,1958.2,1957.9,0.491735]
[1772960694287,0.002,1958.2,1957.9,1.76859958]
[1772960694484,0.002,1958.2,1958.0,0.46619615]
[1772960697040,0.002,1958.2,1957.8,1.27789088]
[1772960697041,0.49198981,1958.2,1957.8,0.492735]
[1772960698344,0.49198981,1958.2,1957.8,1.76967392]
[1772960698639,0.49198981,1958.2,1957.9,0.491735]
[1772960698844,0.002,1958.2,1957.9,0.491735]
[1772960699718,0.002,1958.2,1958.0,0.491735]
[1772960701142,0.002,1958.2,1958.1,1.76848286]
[1772960702540,0.002,1958.2,1958.1,0.491735]
[1772960702751,0.002,1958.2,1958.0,1.27676613]
[1772960703135,0.002,1958.2,1958.0,1.73086578]
[1772960708768,0.002,1958.5,1958.2,0.47669711]
[1772960709758,0.002,1958.6,1958.1,0.47669711]
[1772960710266,0.002,1958.8,1958.1,0.47669711]
[1772960711048,0.002,1958.8,1958.3,0.47669711]
[1772960712590,0.002,1958.4,1958.3,0.47669711]
[1772960712772,0.002,1958.8,1958.3,0.47669711]
[1772960713793,0.002,1958.8,1958.5,0.47669711]
[1772960715406,0.04860578,1958.8,1958.3,1.753264]
[1772960715602,0.04860578,1958.8,1958.4,0.47669711]
[1772960716697,0.04660578,1958.6,1958.2,0.47669711]
[1772960716995,0.04660578,1958.6,1958.1,0.47769711]
[1772960717793,1.487,1958.6,1958.1,0.47769711]
[1772960717986,5.10740746,1958.8,1958.2,0.47669711]
[1772960717987,2.81191472,1958.8,1958.2,0.47669711]
[1772960718295,0.04660578,1958.7,1958.2,0.47669711]
[1772960721918,1.32302771,1958.6,1958.2,0.47669711]
[1772960722382,0.04660578,1958.5,1958.2,0.47669711]
[1772960722908,0.04660578,1958.5,1958.1,0.001]
[1772960723111,0.04660578,1958.5,1958.1,0.47769711]
[1772960724315,1.3231158,1958.5,1958.2,0.001]
[1772960725292,0.04660578,1958.4,1958.2,0.001]
[1772960725622,0.002,1958.6,1958.2,0.47769711]
[1772960725782,0.002,1958.8,1958.3,0.47569711]
[1772960726926,0.002,1958.8,1958.5,0.47569711]
[1772960728197,0.002,1958.8,1958.4,1.27655228]
[1772960728198,0.00153886,1959.0,1958.6,0.49999999]
[1772960729201,0.00153886,1959.0,1958.7,1.77635675]
[1772960731333,0.00153886,1959.0,1958.8,0.49999999]
[1772960731509,0.002,1959.2,1958.8,0.49999999]
[1772960731709,0.002,1959.2,1958.2,5.10756622]
[1772960731710,0.002,1959.2,1958.3,0.49999999]
[1772960733434,0.002,1959.2,1958.5,0.49999999]
[1772960736850,0.002,1959.2,1958.6,1.27642193]
[1772960737052,0.002,1959.2,1958.6,1.77742192]
[1772960737456,0.002,1959.1,1958.6,1.77742192]
[1772960738154,0.002,1959.1,1958.7,0.49999999]
[1772960740260,0.002,1959.1,1958.6,0.50099999]
[1772960740667,0.002,1959.1,1839.0,21.37162498]
[1772960740668,0.002,1959.1,1958.0,0.00253886]
[1772960740847,0.68541409,1958.4,1958.0,0.00253886]
[1772960741047,0.20104056,1959.1,1958.0,0.50253885]
[1772960741048,1.465,1958.7,1958.0,0.50253885]
[1772960741364,1.465,1958.7,1958.1,0.49999999]
[1772960742129,1.27642193,1958.6,1958.1,0.49999999]
[1772960742342,1.27642193,1958.6,1958.1,1.77672863]
[1772960744561,5.10504543,1958.9,1958.1,1.77672863]
[1772960744731,2.70826952,1958.9,1958.2,0.49999999]
[1772960744934,0.002,1959.1,1958.2,0.49999999]
[1772960745257,1.27814558,1959.1,1958.2,0.49999999]
[1772960746674,1.27814558,1959.1,1958.3,1.77661746]
[1772960748485,1.27814558,1959.1,1958.4,0.49999999]
[1772960749185,1.27814558,1959.1,1958.4,1.77653011]
[1772960749386,1.27814558,1959.1,1958.5,0.49999999]
[1772960754389,1.27814558,1959.1,1958.6,0.49999999]
[1772960756806,1.472,1959.0,1958.6,0.49999999]
[1772960758002,1.27814558,1959.1,1958.6,0.49999999]
[1772960758187,1.476,1959.0,1958.6,0.49999999]
[1772960758805,2.75219904,1959.0,1958.6,0.49999999]
[1772960761613,2.75419904,1959.0,1958.6,0.49999999]
[1772960764917,2.76719904,1959.0,1958.6,0.49999999]
[1772960765398,2.76719904,1959.0,1958.7,0.49999999]
[1772960765591,2.76719904,1959.0,1958.5,1.2764734]
[1772960765799,2.76719904,1959.0,1958.6,0.49999999]
[1772960768922,2.76719904,1959.0,1958.3,1.77756689]
[1772960769511,2.76719904,1959.0,1958.3,0.50099999]
[1772960769884,2.76719904,1959.0,1958.3,1.77760737]